fUSD/lending_fUSD_20250322
["ID","MTS","AMOUNT","RATE_DAILY","PERIOD"]
[356544667,1742637084338,-3071.07359748,0.000488,120]
[356544668,1742637084349,-5865.36583985,0.000488,120]
[356544669,1742637084359,-3610.46844835,0.000488,120]
[356544670,1742637084368,-225.96,0.000488,120]
[356544671,1742637084378,-214.20552416,0.000488,120]
[356544672,1742637084387,-214.20552416,0.000488,120]
[356544673,1742637084396,-214.20552416,0.000488,120]
[356544674,1742637084406,-214.20552416,0.000488,120]
[356544675,1742637084415,-214.20552416,0.000488,120]
[356544676,1742637084425,-214.20552416,0.000488,120]
[356544677,1742637084434,-214.20552416,0.000488,120]
[356544678,1742637084444,-214.20552416,0.000488,120]
[356544679,1742637084453,-214.20552416,0.000488,120]
[356544680,1742637084462,-214.20552416,0.000488,120]
[356544681,1742637084471,-214.20552416,0.000488,120]
[356544682,1742637084480,-214.20552416,0.000488,120]
[356544683,1742637084489,-214.20552416,0.000488,120]
[356544684,1742637084499,-214.20552416,0.000488,120]
[356544685,1742637084508,-214.20552416,0.000488,120]
[356544686,1742637084518,-214.20552416,0.000488,120]
[356544687,1742637084527,-214.20552416,0.000488,120]
[356544688,1742637084536,-214.20552416,0.000488,120]
[356544689,1742637084545,-214.20552416,0.000488,120]
[356544690,1742637084555,-214.2,0.000488,120]
[356544691,1742637084563,-152.43297076,0.000488,120]
[356544692,1742637084573,-152.43297076,0.000488,120]
[356544693,1742637084582,-152.43297076,0.000488,120]
[356544694,1742637084591,-152.43297076,0.000488,120]
[356544695,1742637084601,-152.43297076,0.000488,120]
[356544696,1742637084610,-152.43297076,0.000488,120]
[356544697,1742637084619,-152.43297076,0.000488,120]
[356544698,1742637084628,-152.43297076,0.000488,120]
[356544699,1742637084638,-152.43297076,0.000488,120]
[356544700,1742637084647,-152.43297076,0.000488,120]
[356544701,1742637084656,-152.43297076,0.000488,120]
[356544702,1742637084665,-152.43,0.000488,120]
[356544703,1742637084675,-166.13,0.00048877,2]
[356544704,1742637084684,-282.52,0.00048903,2]
[356544705,1742637084693,-2000.0,0.00048932,8]
[356544706,1742637084703,-1874.76295904,0.0004896,29]
[356544707,1742637084712,-50000.0,0.00049,49]
[356544708,1742637084721,-10918.85288508,0.00049,120]
[356544709,1742637084731,-253.5143041,0.00049,30]
[356544710,1742637084740,-1000000.0,0.00049,120]
[356544711,1742637084750,-864.22435174,0.00049,120]
[356544712,1742637084759,-1019.48488524,0.00049,120]
[356544713,1742637084768,-500.0,0.0004904,120]
[356544714,1742637084778,-904.785999,0.00049041,120]
[356544715,1742637084787,-733.844647,0.00049041,120]
[356544716,1742637084796,-500.0,0.00049041,120]
[356544717,1742637084805,-500.0,0.00049041,120]
[356544718,1742637084815,-739.16,0.00049041,120]
[356544719,1742637084824,-500.0,0.00049041,120]
[356544720,1742637084833,-528.26327118,0.00049041,120]
[356544721,1742637084843,-500.0,0.00049041,120]
[356544722,1742637084852,-500.0,0.00049041,120]
[356544723,1742637084862,-950.82,0.00049041,120]
[356544724,1742637084871,-367.37363709,0.00049041,120]
[356544725,1742637084882,-517.63,0.00049041,120]
[356544726,1742637084891,-1049.72,0.00049041,120]
[356544727,1742637084900,-653.69,0.00049041,120]
[356544728,1742637084910,-907.89,0.00049041,120]
[356544729,1742637084919,-600.62,0.00049041,120]
[356544730,1742637084929,-500.0,0.00049041,120]
[356544731,1742637084938,-293.5831318,0.00049041,120]
[356544732,1742637084947,-500.0,0.00049041,120]
[356544733,1742637084956,-500.0,0.00049041,120]
[356544734,1742637084966,-500.0,0.00049041,120]
[356544735,1742637084975,-500.0,0.00049041,120]
[356544736,1742637084984,-500.0,0.00049041,120]
[356544737,1742637084993,-500.0,0.00049041,120]
[356544738,1742637085002,-358.81020944,0.00049041,120]
[356544739,1742637085011,-501.22,0.00049041,120]
[356544740,1742637085020,-500.0,0.00049041,120]
[356544741,1742637085030,-500.0,0.00049041,120]
[356544742,1742637085039,-761.07,0.00049041,120]
[356544743,1742637085048,-956.79,0.00049041,120]
[356544744,1742637085057,-500.0,0.00049041,120]
[356544745,1742637085066,-500.0,0.00049041,120]
[356544746,1742637085075,-963.36,0.00049041,60]
[356544747,1742637085084,-782.21,0.00049041,120]
[356544748,1742637085093,-500.0,0.00049041,120]
[356544749,1742637085102,-584.06,0.00049041,120]
[356544750,1742637085111,-500.0,0.00049041,2]
[356544751,1742637085120,-673.59,0.00049041,120]
[356544752,1742637085129,-502.51,0.00049041,120]
[356544753,1742637085138,-500.0,0.00049041,120]
[356544754,1742637085147,-500.0,0.00049041,120]
[356544755,1742637085156,-1473.31,0.00049041,120]
[356544756,1742637085166,-500.0,0.00049041,120]
[356544757,1742637085175,-500.0,0.00049041,120]
[356544758,1742637085184,-751.46,0.00049041,120]
[356544759,1742637085193,-1642.39,0.00049041,120]
[356544760,1742637085203,-654.04,0.00049041,120]
[356544761,1742637085212,-674.52,0.00049041,120]
[356544762,1742637085222,-520.54,0.00049041,120]
[356544763,1742637085231,-500.0,0.00049041,120]
[356544764,1742637085240,-500.0,0.00049041,120]
[356544765,1742637085250,-781.34,0.00049041,120]
[356544766,1742637085259,-500.0,0.00049041,120]
[356544767,1742637085269,-532.16,0.00049041,120]
[356544768,1742637085278,-500.0,0.00049041,120]
[356544769,1742637085288,-500.0,0.00049041,120]
[356544770,1742637085297,-601.78,0.00049041,120]
[356544771,1742637085306,-691.76,0.00049041,120]
[356544772,1742637085315,-500.0,0.00049041,120]
[356544773,1742637085325,-802.29,0.00049041,120]
[356544774,1742637085334,-500.0,0.00049041,120]
[356544775,1742637085347,-252.75918335,0.00049041,120]
[356544776,1742637085356,-580.53,0.00049041,120]
[356544777,1742637085365,-2210.41,0.00049041,120]
[356544778,1742637085374,-904.56,0.00049041,120]
[356544779,1742637085383,-500.0,0.00049041,120]
[356544780,1742637085392,-500.0,0.00049041,120]
[356544781,1742637085402,-793.91,0.00049041,120]
[356544782,1742637085411,-706.55,0.00049041,120]
[356544783,1742637085420,-834.3,0.00049041,120]
[356544784,1742637085431,-671.78,0.00049041,120]
[356544785,1742637085440,-500.0,0.00049041,120]
[356544786,1742637085450,-500.0,0.00049041,120]
[356544787,1742637085459,-1807.75,0.00049041,120]
[356544788,1742637085468,-500.0,0.00049041,120]
[356544789,1742637085478,-842.88,0.00049041,120]
[356544790,1742637085487,-500.0,0.00049041,120]
[356544791,1742637085496,-500.0,0.00049041,120]
[356544792,1742637085505,-500.0,0.00049041,120]
[356544793,1742637085514,-350.0,0.00049041,120]
[356544794,1742637085523,-965.16,0.00049041,120]
[356544795,1742637085532,-591.6,0.00049041,120]
[356544796,1742637085541,-1371.05,0.00049041,120]
[356544797,1742637085550,-1325.26,0.00049041,120]
[356544798,1742637085559,-558.56,0.00049041,120]
[356544799,1742637085568,-874.61,0.00049041,120]
[356544800,1742637085577,-902.88,0.00049041,120]
[356544801,1742637085587,-509.55,0.00049041,120]
[356544802,1742637085596,-500.0,0.00049041,120]
[356544803,1742637085605,-500.0,0.00049041,120]
[356544804,1742637085614,-500.0,0.00049041,120]
[356544805,1742637085623,-937.33,0.00049041,120]
[356544806,1742637085632,-500.0,0.00049041,120]
[356544807,1742637085642,-500.0,0.00049041,120]
[356544808,1742637085651,-1062.3,0.00049041,120]
[356544809,1742637085660,-600.78,0.00049041,120]
[356544810,1742637085669,-664.64,0.00049041,120]
[356544811,1742637085679,-668.71,0.00049041,120]
[356544812,1742637085688,-564.64,0.00049041,120]
[356544813,1742637085697,-1070.64,0.00049041,120]
[356544814,1742637085707,-979.48,0.00049041,120]
[356544815,1742637085716,-800.83,0.00049041,120]
[356544816,1742637085727,-500.0,0.00049041,120]
[356544817,1742637085736,-698.39,0.00049041,120]
[356544818,1742637085745,-500.0,0.00049041,120]
[356544819,1742637085756,-680.79,0.00049041,120]
[356544820,1742637085766,-514.68,0.00049041,120]
[356544821,1742637085776,-536.4,0.00049041,120]
[356544822,1742637085786,-500.0,0.00049041,120]
[356544823,1742637085795,-500.0,0.00049041,120]
[356544824,1742637085805,-500.0,0.00049041,120]
[356544825,1742637085814,-500.0,0.00049041,120]
[356544826,1742637085825,-500.0,0.00049041,120]
[356544827,1742637085835,-661.88,0.00049041,120]
[356544828,1742637085845,-500.0,0.00049041,120]
[356544829,1742637085854,-500.0,0.00049041,120]
[356544830,1742637085863,-500.0,0.00049041,120]
[356544831,1742637085872,-730.9,0.00049041,120]
[356544832,1742637085881,-1058.49,0.00049041,120]
[356544833,1742637085892,-500.0,0.00049041,120]
[356544834,1742637085901,-1233.22,0.00049041,120]
[356544835,1742637085910,-1327.63,0.00049041,120]
[356544836,1742637085919,-520.32,0.00049041,120]
[356544837,1742637085929,-896.4,0.00049041,120]
[356544838,1742637085938,-1347.94,0.00049041,120]
[356544839,1742637085947,-597.81,0.00049041,120]
[356544840,1742637085956,-788.73,0.00049041,120]
[356544841,1742637085966,-500.0,0.00049041,120]
[356544842,1742637085975,-500.0,0.00049041,120]
[356544843,1742637085984,-2023.49,0.00049041,120]
[356544844,1742637085993,-625.69,0.00049041,120]
[356544845,1742637086003,-1415.42,0.00049041,120]
[356544846,1742637086012,-556.5,0.00049041,120]
[356544847,1742637086021,-839.81,0.00049041,120]
[356544848,1742637086031,-500.0,0.00049041,120]
[356544849,1742637086039,-813.54,0.00049041,120]
[356544850,1742637086049,-570.18,0.00049041,120]
[356544851,1742637086058,-500.0,0.00049041,120]
[356544852,1742637086067,-500.0,0.00049041,120]
[356544853,1742637086076,-500.0,0.00049041,120]
[356544854,1742637086086,-621.41,0.00049041,120]
[356544855,1742637086095,-500.0,0.00049041,120]
[356544856,1742637086104,-300.0,0.00049041,120]
[356544857,1742637086114,-713.81,0.00049041,120]
[356544858,1742637086123,-500.0,0.00049041,120]
[356544859,1742637086132,-500.0,0.00049041,120]
[356544860,1742637086141,-1159.44,0.00049041,10]
[356544861,1742637086151,-639.03,0.00049041,120]
[356544862,1742637086160,-500.0,0.00049041,120]
[356544863,1742637086169,-521.66,0.00049041,120]
[356544864,1742637086180,-1837.38,0.00049041,120]
[356544865,1742637086190,-500.0,0.00049041,120]
[356544866,1742637086200,-500.0,0.00049041,120]
[356544867,1742637086210,-500.0,0.00049041,120]
[356544868,1742637086220,-500.0,0.00049041,120]
[356544869,1742637086230,-500.0,0.00049041,120]
[356544870,1742637086240,-500.0,0.00049041,120]
[356544871,1742637086250,-872.68,0.00049041,120]
[356544872,1742637086259,-500.0,0.00049041,120]
[356544873,1742637086268,-815.59,0.00049041,120]
[356544874,1742637086278,-564.59,0.00049041,120]
[356544875,1742637086297,-500.0,0.00049041,120]
[356544876,1742637086307,-500.0,0.00049041,120]
[356544877,1742637086316,-643.99537021,0.00049041,120]
[356544878,1742637086325,-500.0,0.00049041,120]
[356544879,1742637086334,-629.6,0.00049041,120]
[356544880,1742637086347,-1219.87,0.00049041,120]
[356544881,1742637086356,-511.1,0.00049041,120]
[356544882,1742637086365,-500.0,0.00049041,120]
[356544883,1742637086374,-500.0,0.00049041,120]
[356544884,1742637086385,-500.0,0.00049041,120]
[356544885,1742637086394,-500.0,0.00049041,120]
[356544886,1742637086403,-973.06,0.00049041,120]
[356544887,1742637086412,-500.0,0.00049041,120]
[356544888,1742637086421,-624.39,0.00049041,120]
[356544889,1742637086430,-500.0,0.00049041,120]
[356544890,1742637086440,-1923.34,0.00049041,120]
[356544891,1742637086449,-500.0,0.00049041,120]
[356544892,1742637086459,-820.19,0.00049041,120]
[356544893,1742637086468,-665.21,0.00049041,120]
[356544894,1742637086477,-564.23,0.00049041,120]
[356544895,1742637086486,-500.0,0.00049041,120]
[356544896,1742637086495,-500.0,0.00049041,120]
[356544897,1742637086504,-1241.85,0.00049041,120]
[356544898,1742637086514,-500.0,0.00049041,120]
[356544899,1742637086523,-619.76,0.00049041,120]
[356544900,1742637086533,-500.0,0.00049041,120]
[356544901,1742637086543,-500.0,0.00049041,120]
[356544902,1742637086552,-591.13,0.00049041,120]
[356544903,1742637086562,-500.0,0.00049041,60]
[356544904,1742637086571,-500.0,0.00049041,120]
[356544905,1742637086581,-500.0,0.00049041,120]
[356544906,1742637086590,-611.96,0.00049041,120]
[356544907,1742637086600,-500.0,0.00049041,120]
[356544908,1742637086609,-645.8,0.00049041,120]
[356544909,1742637086619,-529.2,0.00049041,120]
[356544910,1742637086629,-500.0,0.00049041,120]
[356544911,1742637086639,-601.81,0.00049041,120]
[356544912,1742637086647,-641.64,0.00049041,120]
[356544913,1742637086657,-640.55,0.00049041,120]
[356544914,1742637086667,-500.0,0.00049041,120]
[356544915,1742637086676,-500.0,0.00049041,120]
[356544916,1742637086686,-627.71,0.00049041,120]
[356544917,1742637086696,-701.19,0.00049041,120]
[356544918,1742637086706,-1353.99,0.00049041,120]
[356544919,1742637086715,-500.0,0.00049041,120]
[356544920,1742637086724,-334.92,0.00049041,120]
[356544921,1742637086733,-500.0,0.00049041,120]
[356544922,1742637086742,-658.79,0.00049041,120]
[356544923,1742637086751,-1518.81,0.00049041,120]
[356544924,1742637086761,-1579.16,0.00049041,120]
[356544925,1742637086771,-842.72,0.00049041,120]
[356544926,1742637086780,-500.0,0.00049041,120]
[356544927,1742637086789,-1920.4,0.00049041,120]
[356544928,1742637086798,-500.0,0.00049041,120]
[356544929,1742637086808,-500.0,0.00049041,120]
[356544930,1742637086817,-500.0,0.00049041,120]
[356544931,1742637086826,-5245.81,0.00049041,120]
[356544932,1742637086835,-500.0,0.00049041,120]
[356544933,1742637086844,-2131.02,0.00049041,120]
[356544934,1742637086853,-500.0,0.00049041,120]
[356544935,1742637086863,-983.72,0.00049041,120]
[356544936,1742637086871,-500.0,0.00049041,120]
[356544937,1742637086881,-1445.99,0.00049041,120]
[356544938,1742637086890,-585.87,0.00049041,120]
[356544939,1742637086899,-689.75,0.00049041,120]
[356544940,1742637086908,-500.0,0.00049041,120]
[356544941,1742637086917,-500.0,0.00049041,120]
[356544942,1742637086927,-846.6,0.00049041,120]
[356544943,1742637086936,-587.36,0.00049041,120]
[356544944,1742637086945,-635.78,0.00049041,120]
[356544945,1742637086953,-1413.44,0.00049041,120]
[356544946,1742637086963,-500.0,0.00049041,120]
[356544947,1742637086971,-4235.9,0.00049041,2]
[356544948,1742637086980,-500.0,0.00049041,120]
[356544949,1742637086990,-500.0,0.00049041,120]
[356544950,1742637086999,-1454.51,0.00049041,120]
[356544951,1742637087008,-500.0,0.00049041,120]
[356544952,1742637087017,-500.0,0.00049041,120]
[356544953,1742637087026,-500.0,0.00049041,120]
[356544954,1742637087035,-970.54,0.00049041,120]
[356544955,1742637087045,-586.12,0.00049041,120]
[356544956,1742637087055,-500.0,0.00049041,120]
[356544957,1742637087064,-635.48,0.00049041,120]
[356544958,1742637087073,-647.73,0.00049041,120]
[356544959,1742637087082,-996.39,0.00049041,120]
[356544960,1742637087091,-1824.31,0.00049041,120]
[356544961,1742637087100,-500.0,0.00049041,120]
[356544962,1742637087109,-833.59,0.00049041,120]
[356544963,1742637087118,-809.31,0.00049041,120]
[356544964,1742637087127,-2000.27,0.00049041,120]
[356544965,1742637087137,-1128.13,0.00049041,120]
[356544966,1742637087145,-205.85,0.00049041,7]
[356544967,1742637087154,-2750.71,0.00049041,120]
[356544968,1742637087164,-500.0,0.00049041,120]
[356544969,1742637087173,-500.0,0.00049041,120]
[356544970,1742637087182,-972.4,0.00049041,120]
[356544971,1742637087388,-912.87,0.00049041,120]
[356544972,1742637087398,-3375.17,0.00049041,120]
[356544973,1742637087408,-558.47,0.00049041,120]
[356544974,1742637087417,-1367.27,0.00049041,120]
[356544975,1742637087426,-743.38,0.00049041,120]
[356544976,1742637087436,-520.84,0.00049041,120]
[356544977,1742637087446,-500.0,0.00049041,120]
[356544978,1742637087455,-1219.57,0.00049041,120]
[356544979,1742637087465,-500.0,0.00049041,120]
[356544980,1742637087475,-500.0,0.00049041,120]
[356544981,1742637087484,-2818.72,0.00049041,120]
[356544982,1742637087494,-825.87,0.00049041,120]
[356544983,1742637087503,-500.0,0.00049041,120]
[356544984,1742637087512,-635.13,0.00049041,120]
[356544985,1742637087522,-827.5,0.00049041,120]
[356544986,1742637087531,-695.68,0.00049041,120]
[356544987,1742637087541,-500.0,0.00049041,120]
[356544988,1742637087550,-666.85,0.00049041,120]
[356544989,1742637087559,-606.96,0.00049041,120]
[356544990,1742637087569,-500.0,0.00049041,120]
[356544991,1742637087578,-1356.69,0.00049041,7]
[356544992,1742637087588,-1736.83,0.00049041,120]
[356544993,1742637087597,-913.27,0.00049041,120]
[356544994,1742637087609,-599.99,0.00049041,120]
[356544995,1742637087619,-500.0,0.00049041,120]
[356544996,1742637087628,-527.15,0.00049041,120]
[356544997,1742637087637,-500.0,0.00049041,120]
[356544998,1742637087646,-597.23,0.00049041,120]
[356544999,1742637087655,-501.82,0.00049041,120]
[356545000,1742637087664,-1106.0,0.00049041,120]
[356545001,1742637087674,-882.82,0.00049041,120]
[356545002,1742637087684,-500.0,0.00049041,120]
[356545003,1742637087693,-1127.56,0.00049041,120]
[356545004,1742637087702,-1089.93,0.00049041,7]
[356545005,1742637087712,-500.0,0.00049041,120]
[356545006,1742637087721,-502.2,0.00049041,120]
[356545007,1742637087730,-500.0,0.00049041,120]
[356545008,1742637087740,-1068.57,0.00049041,120]
[356545009,1742637087749,-1131.58,0.00049041,120]
[356545010,1742637087759,-529.97,0.00049041,120]
[356545011,1742637087768,-500.0,0.00049041,120]
[356545012,1742637087778,-559.18,0.00049041,120]
[356545013,1742637087786,-500.0,0.00049041,120]
[356545014,1742637087795,-1578.59,0.00049041,120]
[356545015,1742637087805,-5060.41,0.00049041,120]
[356545016,1742637087815,-500.0,0.00049041,120]
[356545017,1742637087824,-500.0,0.00049041,120]
[356545018,1742637087835,-938.19,0.00049041,120]
[356545019,1742637087844,-567.38,0.00049041,120]
[356545020,1742637087854,-617.69,0.00049041,120]
[356545021,1742637087865,-1439.24,0.00049041,120]
[356545022,1742637087874,-1288.21,0.00049041,120]
[356545023,1742637087883,-611.84784282,0.00049041,120]
[356545024,1742637087893,-3623.73,0.00049041,120]
[356545025,1742637087902,-1914.19,0.00049041,120]
[356545026,1742637087911,-1583.29,0.00049041,120]
[356545027,1742637087920,-1724.46,0.00049041,120]
[356545028,1742637087931,-2003.91,0.00049041,100]
[356545029,1742637087940,-1585.84,0.00049041,120]
[356545030,1742637087950,-500.0,0.00049041,120]
[356545031,1742637087959,-2253.09,0.00049041,120]
[356545032,1742637087969,-500.0,0.00049041,120]
[356545033,1742637087979,-500.0,0.00049041,120]
[356545034,1742637087990,-645.37,0.00049041,120]
[356545035,1742637087999,-691.36,0.00049041,120]
[356545036,1742637088010,-817.6,0.00049041,120]
[356545037,1742637088019,-523.41,0.00049041,120]
[356545038,1742637088028,-1609.26,0.00049041,120]
[356545039,1742637088037,-1857.45,0.00049041,120]
[356545040,1742637088049,-1181.24,0.00049041,120]
[356545041,1742637088058,-592.73,0.00049041,120]
[356545042,1742637088068,-1111.56,0.00049041,120]
[356545043,1742637088077,-500.0,0.00049041,120]
[356545044,1742637088086,-500.0,0.00049041,120]
[356545045,1742637088095,-1095.08,0.00049041,120]
[356545046,1742637088105,-1041.52,0.00049041,120]
[356545047,1742637088114,-500.0,0.00049041,120]
[356545048,1742637088123,-624.9,0.00049041,120]
[356545049,1742637088132,-796.13,0.00049041,120]
[356545050,1742637088142,-751.81,0.00049041,120]
[356545051,1742637088151,-722.59,0.00049041,120]
[356545052,1742637088161,-225.9070046,0.00049041,120]
[356545053,1742637088170,-554.28,0.00049041,120]
[356545054,1742637088181,-555.78,0.00049041,120]
[356545055,1742637088190,-500.0,0.00049041,120]
[356545056,1742637088200,-3273.79,0.00049041,120]
[356545057,1742637088209,-2930.96,0.00049041,120]
[356545058,1742637088218,-1052.7,0.00049041,120]
[356545059,1742637088228,-504.22,0.00049041,120]
[356545060,1742637088237,-500.0,0.00049041,120]
[356545061,1742637088246,-1485.55,0.00049041,120]
[356545062,1742637088255,-504.42,0.00049041,120]
[356545063,1742637088264,-500.0,0.00049041,120]
[356545064,1742637088273,-1080.77,0.00049041,120]
[356545065,1742637088282,-657.13,0.00049041,120]
[356545066,1742637088291,-500.0,0.00049041,120]
[356545067,1742637088300,-478.94070388,0.00049041,120]
[356545068,1742637088310,-517.31,0.00049041,120]
[356545069,1742637088319,-760.27,0.00049041,120]
[356545070,1742637088329,-899.53,0.00049041,120]
[356545071,1742637088339,-500.0,0.00049041,120]
[356545072,1742637088352,-500.0,0.00049041,120]
[356545073,1742637088362,-692.39,0.00049041,120]
[356545074,1742637088371,-500.0,0.00049041,120]
[356545075,1742637088381,-500.0,0.00049041,120]
[356545076,1742637088392,-555.67,0.00049041,120]
[356545077,1742637088401,-1026.62,0.00049041,120]
[356545078,1742637088410,-1504.12,0.00049041,120]
[356545079,1742637088423,-655.7,0.00049041,120]
[356545080,1742637088433,-500.0,0.00049041,120]
[356545081,1742637088443,-668.14,0.00049041,120]
[356545082,1742637088452,-500.0,0.00049041,20]
[356545083,1742637088461,-529.96,0.00049041,120]
[356545084,1742637088471,-1785.62,0.00049041,120]
[356545085,1742637088480,-56672.48,0.00049041,120]
[356545086,1742637088490,-500.0,0.00049041,120]
[356545087,1742637088500,-874.3,0.00049041,120]
[356545088,1742637088509,-500.0,0.00049041,120]
[356545089,1742637088518,-892.9,0.00049041,120]
[356545090,1742637088528,-507.98,0.00049041,120]
[356545091,1742637088537,-767.43,0.00049041,120]
[356545092,1742637088547,-818.49,0.00049041,120]
[356545093,1742637088556,-574.58,0.00049041,120]
[356545094,1742637088565,-622.98,0.00049041,120]
[356545095,1742637088575,-1187.99,0.00049041,120]
[356545096,1742637088584,-594.34,0.00049041,120]
[356545097,1742637088593,-500.0,0.00049041,120]
[356545098,1742637088603,-724.76,0.00049041,120]
[356545099,1742637088613,-500.0,0.00049041,120]
[356545100,1742637088622,-554.79,0.00049041,120]
[356545101,1742637088632,-500.0,0.00049041,120]
[356545102,1742637088641,-864.88,0.00049041,120]
[356545103,1742637088650,-664.62,0.00049041,120]
[356545104,1742637088659,-870.55,0.00049041,120]
[356545105,1742637088670,-500.0,0.00049041,120]
[356545106,1742637088680,-3152.52,0.00049041,120]
[356545107,1742637088689,-1001.37,0.00049041,120]
[356545108,1742637088698,-150.0,0.00049067,120]
[356545109,1742637088707,-310.91528815,0.000491,2]
[356545110,1742637088716,-159.09,0.00049128,2]
[356545111,1742637088726,-500.0,0.00049314,120]
[356545112,1742637088735,-2431.94535973,0.00049315,120]
[356545113,1742637088744,-904.785999,0.00049315,120]
[356545114,1742637088753,-733.844647,0.00049315,120]
[356545115,1742637088762,-159.505277,0.00049315,120]
[356545116,1742637088771,-500.0,0.00049315,120]
[356545117,1742637088780,-500.0,0.00049315,120]
[356545118,1742637088789,-739.16,0.00049315,120]
[356545119,1742637088798,-500.0,0.00049315,120]
[356545120,1742637088807,-500.0,0.00049315,120]
[356545121,1742637088816,-500.0,0.00049315,120]
[356545122,1742637088825,-950.82,0.00049315,120]
[356545123,1742637088834,-517.63,0.00049315,120]
[356545124,1742637088843,-1049.72,0.00049315,120]
[356545125,1742637088852,-653.69,0.00049315,120]
[356545126,1742637088861,-907.89,0.00049315,120]
[356545127,1742637088870,-600.62,0.00049315,120]
[356545128,1742637088879,-500.0,0.00049315,120]
[356545129,1742637088889,-500.0,0.00049315,120]
[356545130,1742637088899,-500.0,0.00049315,120]
[356545131,1742637088908,-500.0,0.00049315,120]
[356545132,1742637088918,-500.0,0.00049315,120]
[356545133,1742637088927,-500.0,0.00049315,120]
[356545134,1742637088936,-500.0,0.00049315,120]
[356545135,1742637088945,-501.22,0.00049315,120]
[356545136,1742637088954,-500.0,0.00049315,120]
[356545137,1742637088963,-500.0,0.00049315,120]
[356545138,1742637088972,-761.07,0.00049315,120]
[356545139,1742637088981,-956.79,0.00049315,120]
[356545140,1742637088990,-500.0,0.00049315,120]
[356545141,1742637088999,-500.0,0.00049315,120]
[356545142,1742637089009,-963.36,0.00049315,60]
[356545143,1742637089018,-782.21,0.00049315,120]
[356545144,1742637089027,-500.0,0.00049315,120]
[356545145,1742637089036,-584.06,0.00049315,120]
[356545146,1742637089046,-490.86907146,0.00049315,2]
[356545147,1742637089056,-673.59,0.00049315,120]
[356545148,1742637089066,-502.51,0.00049315,120]
[356545149,1742637089075,-500.0,0.00049315,120]
[356545150,1742637089086,-500.0,0.00049315,120]
[356545151,1742637089095,-1473.31,0.00049315,120]
[356545152,1742637089104,-500.0,0.00049315,120]
[356545153,1742637089114,-500.0,0.00049315,120]
[356545154,1742637089124,-751.46,0.00049315,120]
[356545155,1742637089133,-1642.39,0.00049315,120]
[356545156,1742637089142,-654.04,0.00049315,120]
[356545157,1742637089151,-674.52,0.00049315,120]
[356545158,1742637089160,-520.54,0.00049315,120]
[356545159,1742637089170,-500.0,0.00049315,120]
[356545160,1742637089179,-500.0,0.00049315,120]
[356545161,1742637089189,-781.34,0.00049315,120]
[356545162,1742637089198,-500.0,0.00049315,120]
[356545163,1742637089207,-532.16,0.00049315,120]
[356545164,1742637089216,-500.0,0.00049315,120]
[356545165,1742637089226,-601.78,0.00049315,120]
[356545166,1742637089235,-500.0,0.00049315,120]